{"text_format":"1","workbook":"xlsx","n_sheets":3,"sheets":["Пробник","База","Списки"],"not_rendered":{"charts":0,"images":0,"macros":1,"external_links":0,"defined_names":3,"comments":0,"pivot_tables":0},"unopened":[],"bounds":{"document_bytes":16777216,"sheet_cells":100000,"rows_first":2000,"rows_last":500,"rows_between":2000,"halvings":0,"cell_chars":16384,"cell_head_chars":4096},"cells_cut":0,"cells_raw":0,"read":"whole","date_system":"1900"}

{"sheet":"Пробник","index":0,"n_rows":17,"n_cols":42,"rows_kept":17,"cut":false,"hidden":false,"merged":[]}
["дата","Дата слива","Авто/ЖД","Расход/приход","Ресурс","Завод","№ тягач","№ прицеп","ПІБ Водія","Тара","Брутто","Нетто","Плотн","Тумп","База/переміщення","№накл","Вес","Плотн2","Темп","Направление","№ вагона","№ партії","№ накладної","Обєм вагона","вес по накл","Пропан %","Бутан %","Темпер паспорт +15","Плотность паспорт","Паспорт дата","№ паспорта","Температура при зливі (Середньодобова)","Тиск по зливу (1)","Факт тиск","Фактична плотность","ЖД брутто","ЖД тара","ЖД нетто","Емкость №","Емкость №3","Емкость №4","Емкость №5"]
[1111,null,"ппа","апа"]
["1900-01-01","1900-01-01","ЖД","Приход","","1"]
["1900-01-01","1900-01-01","ЖД","Приход","1","1"]
["1900-01-01","1900-01-01","ЖД","Приход","1","1"]
["1900-01-01","1900-01-01","ЖД","Приход","1","1"]
["1900-01-01","1900-01-01","ЖД","Приход","1","1"]
["1900-01-01","1900-01-01","ЖД","Приход","1","1"]
["1900-01-01","1900-01-01","ЖД","Приход","1","1"]
["1900-01-01","1900-01-01","ЖД","Приход","1","1"]
["1900-01-01","1900-01-01","ЖД","Приход","1","1"]
["1900-01-01","1900-01-01","ЖД","Приход","1","11",null,null,null,null,null,null,null,null,null,null,null,null,null,"1",1,1,"1"]
["1900-01-01","1900-01-01","ЖД","Приход","1","1",null,null,null,null,null,null,null,null,null,null,null,null,null,"1",1,1,"1",null,1,1,1,1,1,"1900-01-01","1",null,null,null,1,1]
["1900-01-01","1900-01-01","ЖД","Приход","1","1",null,null,null,null,null,null,null,null,null,null,null,null,null,"1",1,1,"1",null,1,1,1,1,1,"1900-01-01","1",null,null,null,1,1]
["1900-01-01","1900-01-01","ЖД","Приход","1","1",null,null,null,null,null,null,null,null,null,null,null,null,null,"1",1,1,"",1,1,1,1,1,1,"1900-01-01","",null,null,null,1,1]
["2017-03-01","2017-03-01","ЖД","Приход","11","11",null,null,null,null,null,null,null,null,null,null,null,null,null,"111",33,11,"33",3,33,3,3,33,3,"2017-03-11","33",null,null,null,33,33]
["2017-03-01","2017-03-01","ЖД","Приход","ТОВ \"Мидас\"","1апорсапр",null,null,null,null,null,null,null,null,null,null,null,null,null,"апоапоао",11,11,"11",111,1,0.54600000000000004,1,111,1,"2017-03-01","121",null,null,null,11,111]

{"sheet":"База","index":1,"n_rows":74,"n_cols":50,"rows_kept":74,"cut":false,"hidden":false,"merged":[]}
["дата","Дата слива","Авто/ЖД","Расход/приход","Ресурс","Завод","№ тягач","№ прицеп","ПІБ Водія","Тара","Брутто","Нетто","Плотн","Тумп","База/переміщення","№накл","Вес","Плотн2","Темп","Направление","№ вагона","№ партії","№ накладної","Обєм вагона","вес по накл","Пропан %","Бутан %","Темпер паспорт +15","Плотность паспорт","Паспорт дата","№ паспорта","Температура при зливі (Середньодобова)","Тиск по зливу (1)","Факт тиск","Фактична плотность","ЖД брутто","ЖД тара","ЖД нетто","Емкость №","Емкость №3","Емкость №4","Емкость №5",null,null,null,null,null,"Ресурс","Приход/Расход","Авто/ЖД"]
["2017-03-01",null,"Авто","Расход","\"Креатив Трейдинг\"",null,"АІ3853ЕЕ","21283КА","Кирилюк М.М.",null,null,{"$f":"БАЗА[[#This Row],[Брутто]]-БАЗА[[#This Row],[Тара]]","v":0},null,null,null,"№ 4",27420,null,null,null,null,null,null,null,null,null,null,null,null,null,null,null,null,null,null,null,null,null,null,null,null,null,null,null,null,null,null,"\"Креатив Трейдинг\"","Приход","Авто"]
["2017-03-01",null,"Авто","Расход","\"Креатив Трейдинг\"",null,"АА8196ІО","20271КА","Василенко О.С.",null,null,{"$f":"БАЗА[[#This Row],[Брутто]]-БАЗА[[#This Row],[Тара]]","v":0},null,null,null,"№ 5",27500,null,null,null,null,null,null,null,null,null,null,null,null,null,null,null,null,null,null,null,null,null,null,null,null,null,null,null,null,null,null,"ТОВ \"ВОГ Трейдинг\"","Расход","ЖД"]
["2017-03-01",null,"Авто","Расход","\"Креатив Трейдинг\"",null,"АА0188ВА","АА0556ХК","Вовк В.П.",null,null,{"$f":"БАЗА[[#This Row],[Брутто]]-БАЗА[[#This Row],[Тара]]","v":0},null,null,null,"№ 6",21460,null,null,null,null,null,null,null,null,null,null,null,null,null,null,null,null,null,null,null,null,null,null,null,null,null,null,null,null,null,null,"ТОВ \"Мидас\""]
["2017-03-01",null,"Авто","Расход","\"Креатив Трейдинг\"",null,"АА8960РС","ВС6095ХТ","Вінтоняк Ю.Я.",null,null,{"$f":"БАЗА[[#This Row],[Брутто]]-БАЗА[[#This Row],[Тара]]","v":0},null,null,null,"№ 8",20640,null,null,null,null,null,null,null,null,null,null,null,null,null,null,null,null,null,null,null,null,null,null,null,null,null,null,null,null,null,null,"ДП \"Пропан\""]
["2017-03-01",null,"Авто","Расход","\"Креатив Трейдинг\"",null,"АА4069ОВ","АА1351ХМ","Бабич В.Р.",null,null,{"$f":"БАЗА[[#This Row],[Брутто]]-БАЗА[[#This Row],[Тара]]","v":0},null,null,null,"№ 9",19540,null,null,null,null,null,null,null,null,null,null,null,null,null,null,null,null,null,null,null,null,null,null,null,null,null,null,null,null,null,null,"\"Глуско Україна\""]
["2017-03-01",null,"Авто","Расход","\"Креатив Трейдинг\"",null,"АА5082ІР","АА1315ХМ","Шеремет О.С.",null,null,{"$f":"БАЗА[[#This Row],[Брутто]]-БАЗА[[#This Row],[Тара]]","v":0},null,null,null,"№ 10",19640]
["2017-03-01",null,"Авто","Расход","\"Креатив Трейдинг\"",null,"АА9145МС","АА6164ХО","Чорний Л.В.",null,null,{"$f":"БАЗА[[#This Row],[Брутто]]-БАЗА[[#This Row],[Тара]]","v":0},null,null,null,"№ 13",19900]
["2017-03-01",null,"Авто","Расход","\"Креатив Трейдинг\"",null,"АА4370ЕВ","АА0143ХМ","Михальчук В.М.",null,null,{"$f":"БАЗА[[#This Row],[Брутто]]-БАЗА[[#This Row],[Тара]]","v":0},null,null,null,"№ 14",19600]
["2017-03-01",null,"Авто","Расход","ДП \"Пропан\"",null,"АІ9142ВВ","АІ1767ХР","Мельник Ю.В.",17940,33840,{"$f":"БАЗА[[#This Row],[Брутто]]-БАЗА[[#This Row],[Тара]]","v":15900},0.55000000000000004,5,null,1,16680,0.55600000000000005,2,"Київська обл."]
["2017-03-01",null,"Авто","Расход","ДП \"Пропан\"",null,"3954 ІОВ",null,"Петрик М.І.",null,null,{"$f":"БАЗА[[#This Row],[Брутто]]-БАЗА[[#This Row],[Тара]]","v":0},null,null,null,2,3200,null,null,"Сквира ГНП"]
["2017-03-01",null,"Авто","Расход","ДП \"Пропан\"",null,"3954 ІОВ",null,"Петрик М.І.",6500,8460,{"$f":"БАЗА[[#This Row],[Брутто]]-БАЗА[[#This Row],[Тара]]","v":1960},0.55200000000000005,4,null,3,1980,0.55800000000000005,1,"Корольова АГЗП"]
["2017-03-01",null,"Авто","Расход","ДП \"Пропан\"",null,"АІ2748АН","ВІ5959ХХ","Гульчук І.І.",20480,38960,{"$f":"БАЗА[[#This Row],[Брутто]]-БАЗА[[#This Row],[Тара]]","v":18480},0.55200000000000005,7,null,7,18800,0.55800000000000005,4,"Жит.обл./Київ.обл."]
["2017-03-01",null,"Авто","Расход","ДП \"Пропан\"",null,"АІ5923АВ","АІ1768ХР","Іванишин В.В.",18020,33160,{"$f":"БАЗА[[#This Row],[Брутто]]-БАЗА[[#This Row],[Тара]]","v":15140},0.55200000000000005,7,null,11,15280,0.55800000000000005,4,"Хмельницька обл."]
["2017-03-01",null,"Авто","Расход","ДП \"Пропан\"",null,"АІ2584АІ","АІ4443ХХ","Ковбан В.І.",22180,40020,{"$f":"БАЗА[[#This Row],[Брутто]]-БАЗА[[#This Row],[Тара]]","v":17840},0.55300000000000005,7,null,12,7900,0.55900000000000005,4,"Житомирська обл."]
["2017-03-01",null,"Авто","Расход","ДП \"Пропан\"",null,"АІ2584АІ","АІ4443ХХ","Ковбан В.І.",null,null,{"$f":"БАЗА[[#This Row],[Брутто]]-БАЗА[[#This Row],[Тара]]","v":0},null,null,null,12.1,10000,null,null,"Черняхів ГНП"]
["2017-03-02",null,"Авто","Расход","\"Креатив Трейдинг\"",null,"ВІ2884ВХ","ВІ8554ХР","Норенко Ю.П.",null,null,{"$f":"БАЗА[[#This Row],[Брутто]]-БАЗА[[#This Row],[Тара]]","v":0},null,null,null,"№ 16",19020]
["2017-03-02",null,"Авто","Расход","\"Креатив Трейдинг\"",null,"АА8125МЕ","АА5933ХХ","Яременко В.Д.",null,null,{"$f":"БАЗА[[#This Row],[Брутто]]-БАЗА[[#This Row],[Тара]]","v":0},null,null,null,"№ 17",18560,null,null,"Станишевка"]
["2017-03-02",null,"Авто","Расход","\"Креатив Трейдинг\"",null,"АА9147МС","АА6184ХО","Цвілюк С.О.",null,null,{"$f":"БАЗА[[#This Row],[Брутто]]-БАЗА[[#This Row],[Тара]]","v":0},null,null,null,"№ 18",19080]
["2017-03-02",null,"Авто","Расход","ДП \"Пропан\"",null,"АІ9142ВВ","АІ1767ХР","Мельник Ю.В.",17780,34160,{"$f":"БАЗА[[#This Row],[Брутто]]-БАЗА[[#This Row],[Тара]]","v":16380},0.55400000000000005,7,null,15,16540,0.56000000000000005,4,"Жит./Київ./Він. Обл."]
["2017-03-03",null,"Авто","Расход","\"Креатив Трейдинг\"",null,"АА9860РС","ВС6095ХТ","Вінтоняк Ю.Я.",null,null,{"$f":"БАЗА[[#This Row],[Брутто]]-БАЗА[[#This Row],[Тара]]","v":0},null,null,null,"№ 20",20020]
["2017-03-03","2017-03-03","ЖД","Приход","\"Глуско Україна\"",null,null,null,null,null,null,{"$f":"БАЗА[[#This Row],[Брутто]]-БАЗА[[#This Row],[Тара]]","v":0},null,null,null,null,null,null,null,null,76647403,null,null,null,36900]
["2017-03-03","2017-03-03","ЖД","Приход","\"Глуско Україна\"",null,null,null,null,null,null,{"$f":"БАЗА[[#This Row],[Брутто]]-БАЗА[[#This Row],[Тара]]","v":0},null,null,null,null,null,null,null,null,76689082,null,null,null,36900]
["2017-03-03","2017-03-03","ЖД","Приход","\"Глуско Україна\"",null,null,null,null,null,null,{"$f":"БАЗА[[#This Row],[Брутто]]-БАЗА[[#This Row],[Тара]]","v":0},null,null,null,null,null,null,null,null,77487999,null,null,null,35650]
["2017-03-03","2017-03-03","ЖД","Приход","\"Глуско Україна\"",null,null,null,null,null,null,{"$f":"БАЗА[[#This Row],[Брутто]]-БАЗА[[#This Row],[Тара]]","v":0},null,null,null,null,null,null,null,null,76659986,null,null,null,36800]
["2017-03-03",null,"Авто","Расход","ДП \"Пропан\"",null,"ВА6850ВЕ","ВА7277ХТ","Кусевич І.А.",null,null,{"$f":"БАЗА[[#This Row],[Брутто]]-БАЗА[[#This Row],[Тара]]","v":0},null,null,null,19,20840,null,null,"Черняхів ГНП"]
["2017-03-03",null,"Авто","Расход","ДП \"Пропан\"",null,"АІ2584АІ","АІ4443ХХ","Ковбан В.І.",22320,39820,{"$f":"БАЗА[[#This Row],[Брутто]]-БАЗА[[#This Row],[Тара]]","v":17500},0.55000000000000004,7,null,21,17660,0.55600000000000005,4,"Жит./Хмел. Обл"]
["2017-03-03",null,"Авто","Расход","ДП \"Пропан\"",null,"ВА6850ВЕ","ВА7277ХТ","Кусевич І.А.",null,null,{"$f":"БАЗА[[#This Row],[Брутто]]-БАЗА[[#This Row],[Тара]]","v":0},null,null,null,23,20680,null,null,"Сквира ГНП"]
["2017-03-03",null,"Авто","Расход","ДП \"Пропан\"",null,"ВА5054ВЕ","ВА5500ХХ","Калінін С.А.",null,null,{"$f":"БАЗА[[#This Row],[Брутто]]-БАЗА[[#This Row],[Тара]]","v":0},null,null,null,24,20740,null,null,"Олевськ ГНП"]
["2017-03-03",null,"Авто","Расход","ДП \"Пропан\"",null,"АІ2748АН","АІ5959ХХ","Томашевський В.В.",20500,39340,{"$f":"БАЗА[[#This Row],[Брутто]]-БАЗА[[#This Row],[Тара]]","v":18840},0.55400000000000005,4,null,22,19020,0.56000000000000005,1,"Вінниця обл."]
["2017-03-04",null,"Авто","Расход","ДП \"Пропан\"",null,"ВА6850ВЕ","ВА7277ХТ","Шевченко В.В.",null,null,{"$f":"БАЗА[[#This Row],[Брутто]]-БАЗА[[#This Row],[Тара]]","v":0},null,null,null,25,17320,null,null,"Немирів ГНС"]
["2017-03-04",null,"Авто","Расход","ДП \"Пропан\"",null,"3954 ІОВ",null,"Петрик М.І.",6480,8620,{"$f":"БАЗА[[#This Row],[Брутто]]-БАЗА[[#This Row],[Тара]]","v":2140},0.55000000000000004,11,null,28,2160,0.55600000000000005,8,"Корольова АГЗП"]
["2017-03-04",null,"Авто","Расход","\"Креатив Трейдинг\"",null,"АР4958СТ","АР4436ХХ","Явела В.В.",null,null,{"$f":"БАЗА[[#This Row],[Брутто]]-БАЗА[[#This Row],[Тара]]","v":0},null,null,null,"№ 26",18660]
["2017-03-04",null,"Авто","Расход","\"Креатив Трейдинг\"",null,"АР4495ВТ","АР6128ХТ","Санжаровський О.В.",null,null,{"$f":"БАЗА[[#This Row],[Брутто]]-БАЗА[[#This Row],[Тара]]","v":0},null,null,null,"№ 27",18720]
["2017-03-04",null,"Авто","Расход","\"Креатив Трейдинг\"",null,"АА4370ЕВ","АА0143ХМ","Михальчук В.М.",null,null,{"$f":"БАЗА[[#This Row],[Брутто]]-БАЗА[[#This Row],[Тара]]","v":0},null,null,null,"№ 29",19820]
["2017-03-05",null,"Авто","Расход","\"Креатив Трейдинг\"",null,"АА2692МІ","АС1709ХР","Принда І.П.",null,null,{"$f":"БАЗА[[#This Row],[Брутто]]-БАЗА[[#This Row],[Тара]]","v":0},null,null,null,"№ 31",20080]
["2017-03-05","2017-03-05","ЖД","Приход","\"Глуско Україна\"",null,null,null,null,null,null,{"$f":"БАЗА[[#This Row],[Брутто]]-БАЗА[[#This Row],[Тара]]","v":0},null,null,null,null,null,null,null,null,77775690,null,null,null,42050]
["2017-03-05","2017-03-05","ЖД","Приход","\"Глуско Україна\"",null,null,null,null,null,null,{"$f":"БАЗА[[#This Row],[Брутто]]-БАЗА[[#This Row],[Тара]]","v":0},null,null,null,null,null,null,null,null,77446698,null,null,null,41500]
["2017-03-05","2017-03-05","ЖД","Приход","\"Глуско Україна\"",null,null,null,null,null,null,{"$f":"БАЗА[[#This Row],[Брутто]]-БАЗА[[#This Row],[Тара]]","v":0},null,null,null,null,null,null,null,null,76689041,null,null,null,42000]
["2017-03-05",null,"Авто","Расход","ДП \"Пропан\"",null,"АІ5923АВ","АІ1768ХР","Іванишин В.В.",18220,33420,{"$f":"БАЗА[[#This Row],[Брутто]]-БАЗА[[#This Row],[Тара]]","v":15200},0.54600000000000004,13,null,30,15340,0.55200000000000005,10,"Жит./Київ. Обл."]
["2017-03-05",null,"Авто","Расход","ДП \"Пропан\"",null,"АІ2584АІ","АІ4443ХХ","Ковбан В.І.",22260,37260,{"$f":"БАЗА[[#This Row],[Брутто]]-БАЗА[[#This Row],[Тара]]","v":15000},0.54800000000000004,12,null,32,15140,0.55400000000000005,9,"Жит./Київ. Обл."]
["2017-03-05",null,"Авто","Расход","ДП \"Пропан\"",null,"АІ2748АН","АІ5959ХХ","Томашевський В.В.",20880,40080,{"$f":"БАЗА[[#This Row],[Брутто]]-БАЗА[[#This Row],[Тара]]","v":19200},0.54500000000000004,11,null,33,19380,0.55100000000000005,8,"Жит./Він. Обл."]
["2017-03-05",null,"Авто","Приход","ДП \"Пропан\"","Укрнафта","ВА5054ВЕ","ВА5500ХХ","Калинин С.",null,null,{"$f":"БАЗА[[#This Row],[Брутто]]-БАЗА[[#This Row],[Тара]]","v":0},null,null,null,"№2126",17980]
["2017-03-05",null,"Авто","Приход","ДП \"Пропан\"","Укрнафта","ВА6850ВЕ","ВА7277ХТ","Шевченко В.В.",null,null,{"$f":"БАЗА[[#This Row],[Брутто]]-БАЗА[[#This Row],[Тара]]","v":0},null,null,null,"№2127",18020]
["2017-03-06",null,"Авто","Расход","\"Креатив Трейдинг\"",null,"АР1284ВХ","АР4065ХР","Венгеренко С.Г.",null,null,{"$f":"БАЗА[[#This Row],[Брутто]]-БАЗА[[#This Row],[Тара]]","v":0},null,null,null,"№ 35",19300]
["2017-03-06",null,"Авто","Расход","\"Креатив Трейдинг\"",null,"АР4958СТ","АР4436ХХ","Явела В.В.",null,null,{"$f":"БАЗА[[#This Row],[Брутто]]-БАЗА[[#This Row],[Тара]]","v":0},null,null,null,"№ 38",19180]
["2017-03-06",null,"Авто","Расход","\"Креатив Трейдинг\"",null,"АР6494СР","АР1077ХО","Вітер О.І.",null,null,{"$f":"БАЗА[[#This Row],[Брутто]]-БАЗА[[#This Row],[Тара]]","v":0},null,null,null,"№ 39",19280]
["2017-03-06",null,"Авто","Расход","ДП \"Пропан\"",null,"АІ5923АВ","АІ1768ХР","Іванишин В.В.",18140,33360,{"$f":"БАЗА[[#This Row],[Брутто]]-БАЗА[[#This Row],[Тара]]","v":15220},0.55000000000000004,9,null,34,15360,0.55600000000000005,5,"Жит./Київ. Обл."]
["2017-03-06",null,"Авто","Расход","ДП \"Пропан\"",null,"АІ2584АІ","АІ4443ХХ","Ковбан В.І.",null,null,{"$f":"БАЗА[[#This Row],[Брутто]]-БАЗА[[#This Row],[Тара]]","v":0},null,null,null,36,18260,null,null,"Київська обл."]
["2017-03-06",null,"Авто","Расход","ДП \"Пропан\"",null,"АІ9142ВВ","АІ1767ХР","Мельник Ю.В.",null,null,{"$f":"БАЗА[[#This Row],[Брутто]]-БАЗА[[#This Row],[Тара]]","v":0},null,null,null,37,16740,null,null,"Полтавська обл."]
["2017-03-06",null,"Авто","Приход","ДП \"Пропан\"","Укрнафта","АІ2584АІ","АІ4443ХХ","Ковбан В.І.",null,null,{"$f":"БАЗА[[#This Row],[Брутто]]-БАЗА[[#This Row],[Тара]]","v":0},null,null,null,"№Г17-206/1",18080]
["2017-03-07",null,"Авто","Расход","\"Креатив Трейдинг\"",null,"АР4495ВТ","АР6128ХТ","Колосов С.В.",null,null,{"$f":"БАЗА[[#This Row],[Брутто]]-БАЗА[[#This Row],[Тара]]","v":0},null,null,null,"№ 41",17880]
["2017-03-07",null,"Авто","Расход","ДП \"Пропан\"",null,"АІ5923АВ","АІ1768ХР","Іванишин В.В.",17740,33340,{"$f":"БАЗА[[#This Row],[Брутто]]-БАЗА[[#This Row],[Тара]]","v":15600},0.55000000000000004,7,null,40,15740,0.55600000000000005,4]
["2017-03-08",null,"Авто","Расход","ДП \"Пропан\"",null,"3954 ІОВ",null,"Петрик М.І.",6520,8320,{"$f":"БАЗА[[#This Row],[Брутто]]-БАЗА[[#This Row],[Тара]]","v":1800},0.54,11,null,42,1820,0.54600000000000004,8]
["2017-03-08",null,"Авто","Расход","ДП \"Пропан\"",null,"АІ5923АВ","АІ1768ХР","Іванишин В.В.",17880,33260,{"$f":"БАЗА[[#This Row],[Брутто]]-БАЗА[[#This Row],[Тара]]","v":15380},0.55500000000000005,7,null,43,15520,0.56100000000000005,4]
["2017-03-08","2017-03-08","ЖД","Приход","\"Глуско Україна\"",null,null,null,null,null,null,{"$f":"БАЗА[[#This Row],[Брутто]]-БАЗА[[#This Row],[Тара]]","v":0},null,null,null,null,null,null,null,null,76661156,null,null,null,41600]
["2017-03-08","2017-03-08","ЖД","Приход","\"Глуско Україна\"",null,null,null,null,null,null,{"$f":"БАЗА[[#This Row],[Брутто]]-БАЗА[[#This Row],[Тара]]","v":0},null,null,null,null,null,null,null,null,76661057,null,null,null,41250]
["2017-03-08","2017-03-08","ЖД","Приход","\"Глуско Україна\"",null,null,null,null,null,null,{"$f":"БАЗА[[#This Row],[Брутто]]-БАЗА[[#This Row],[Тара]]","v":0},null,null,null,null,null,null,null,null,76630920,null,null,null,42050]
["2017-03-08","2017-03-08","ЖД","Приход","\"Глуско Україна\"",null,null,null,null,null,null,{"$f":"БАЗА[[#This Row],[Брутто]]-БАЗА[[#This Row],[Тара]]","v":0},null,null,null,null,null,null,null,null,76651476,null,null,null,41250]
["2017-03-08","2017-03-08","ЖД","Приход","\"Глуско Україна\"",null,null,null,null,null,null,{"$f":"БАЗА[[#This Row],[Брутто]]-БАЗА[[#This Row],[Тара]]","v":0},null,null,null,null,null,null,null,null,77446896,null,null,null,41550]
["2017-03-08","2017-03-08","ЖД","Приход","\"Глуско Україна\"",null,null,null,null,null,null,{"$f":"БАЗА[[#This Row],[Брутто]]-БАЗА[[#This Row],[Тара]]","v":0},null,null,null,null,null,null,null,null,76633684,null,null,null,37200]
["2017-03-08","2017-03-08","ЖД","Приход","\"Глуско Україна\"",null,null,null,null,null,null,{"$f":"БАЗА[[#This Row],[Брутто]]-БАЗА[[#This Row],[Тара]]","v":0},null,null,null,null,null,null,null,null,76633510,null,null,null,37300]
["2017-03-08","2017-03-08","ЖД","Приход","\"Глуско Україна\"",null,null,null,null,null,null,{"$f":"БАЗА[[#This Row],[Брутто]]-БАЗА[[#This Row],[Тара]]","v":0},null,null,null,null,null,null,null,null,76663574,null,null,null,37550]
["2017-03-08","2017-03-09","ЖД","Приход","\"Глуско Україна\"",null,null,null,null,null,null,{"$f":"БАЗА[[#This Row],[Брутто]]-БАЗА[[#This Row],[Тара]]","v":0},null,null,null,null,null,null,null,null,77443596,null,null,null,41100]
["2017-03-09",null,"Авто","Приход","ДП \"Пропан\"",null,"ВА5054ВЕ","ВА5500ХХ","Калинин С.",null,null,{"$f":"БАЗА[[#This Row],[Брутто]]-БАЗА[[#This Row],[Тара]]","v":0},null,null,null,"№2220",18080]
["2017-03-09",null,"Авто","Приход","ДП \"Пропан\"",null,"ВА6850ВЕ","ВА7277ХТ","Шевченко В.В.",null,null,{"$f":"БАЗА[[#This Row],[Брутто]]-БАЗА[[#This Row],[Тара]]","v":0},null,null,null,"№2217",18080]
["2017-03-09",null,"Авто","Расход","ДП \"Пропан\"",null,"3954 ІОВ",null,"Петрик М.І.",null,null,{"$f":"БАЗА[[#This Row],[Брутто]]-БАЗА[[#This Row],[Тара]]","v":0},null,null,null,45,3380]
["2017-03-09",null,"Авто","Расход","ДП \"Пропан\"",null,"АІ2584АІ","АІ4443ХХ","Ковбан В.І.",22400,40660,{"$f":"БАЗА[[#This Row],[Брутто]]-БАЗА[[#This Row],[Тара]]","v":18260},0.55000000000000004,3,null,47,18440]
["2017-03-09",null,"Авто","Расход","ДП \"Пропан\"",null,"ВА5054ВЕ","ВА5054ВЕ","Калинин С.",null,null,{"$f":"БАЗА[[#This Row],[Брутто]]-БАЗА[[#This Row],[Тара]]","v":0},null,null,null,null,20860]
["2017-03-09",null,"Авто","Расход","\"Креатив Трейдинг\"",null,"АР4495ВТ","АР6128ХТ","Колосов С.В.",null,null,{"$f":"БАЗА[[#This Row],[Брутто]]-БАЗА[[#This Row],[Тара]]","v":0},null,null,null,"№ 44",19100]
["2017-03-09",null,"Авто","Расход","\"Глуско Україна\"",null,"АА3622АІ","АА9823ХХ","Скібіцький П.В.",null,null,{"$f":"БАЗА[[#This Row],[Брутто]]-БАЗА[[#This Row],[Тара]]","v":0},null,null,null,"№ 46",20600]
["2017-03-09","2017-03-09","ЖД","Приход","\"Креатив Трейдинг\"",null,null,null,null,null,null,{"$f":"БАЗА[[#This Row],[Брутто]]-БАЗА[[#This Row],[Тара]]","v":0},null,null,null,null,null,null,null,null,76691625,null,null,null,39429]
["2017-03-09","2017-03-09","ЖД","Приход","\"Креатив Трейдинг\"",null,null,null,null,null,null,{"$f":"БАЗА[[#This Row],[Брутто]]-БАЗА[[#This Row],[Тара]]","v":0},null,null,null,null,null,null,null,null,76691930,null,null,null,39928]
["2017-03-09","2017-03-09","ЖД","Приход","\"Креатив Трейдинг\"",null,null,null,null,null,null,{"$f":"БАЗА[[#This Row],[Брутто]]-БАЗА[[#This Row],[Тара]]","v":0},null,null,null,null,null,null,null,null,76691807,null,null,null,39215]

{"sheet":"Списки","index":2,"n_rows":5,"n_cols":3,"rows_kept":5,"cut":false,"hidden":false,"merged":[]}
["\"Креатив Трейдинг\"",null,"Приход"]
["ТОВ \"ВОГ Трейдинг\"",null,"Расход"]
["ТОВ \"Мидас\""]
["ДП \"Пропан\""]
["\"Глуско Україна\""]